fUST/lending_fUST_20250725
["ID","MTS","AMOUNT","RATE_DAILY","PERIOD"]
[374617603,1753380642496,-460.0,0.00019908,2]
[374617604,1753380642506,-460.0,0.00019908,2]
[374617605,1753380642515,-460.0,0.00019908,2]
[374617606,1753380642524,-460.0,0.00019908,2]
[374617607,1753380642534,-460.0,0.00019908,2]
[374617608,1753380642543,-460.0,0.00019908,2]
[374617609,1753380642553,-460.0,0.00019908,2]
[374617610,1753380642563,-460.0,0.00019908,2]
[374617611,1753380642573,-460.0,0.00019908,2]
[374617612,1753380642583,-460.0,0.00019908,2]
[374617613,1753380642593,-460.0,0.00019908,2]
[374617614,1753380642602,-460.0,0.00019908,2]
[374617615,1753380642614,-460.0,0.00019908,2]
[374617616,1753380642623,-460.0,0.00019908,2]
[374617617,1753380642633,-460.0,0.00019908,2]
[374617618,1753380642644,-460.0,0.00019908,2]
[374617619,1753380642654,-230.92162435,0.00019908,2]
[374617620,1753380642664,-460.0,0.00019908,2]
[374617621,1753380642674,-460.0,0.00019908,2]
[374617622,1753380642684,-460.0,0.00019908,2]
[374617623,1753380642695,-460.0,0.00019908,2]
[374617624,1753380642706,-169.85909588,0.00019908,2]
[374617625,1753380642716,-460.0,0.00019908,2]
[374617626,1753380642725,-460.0,0.00019908,2]
[374617627,1753380642735,-1096.7,0.00019908,2]
[374617628,1753380642744,-460.0,0.00019908,2]
[374617629,1753380642755,-460.0,0.00019908,2]
[374617630,1753380642766,-460.0,0.00019908,2]
[374617631,1753380642776,-460.0,0.00019908,2]
[374617632,1753380642787,-460.0,0.00019908,2]
[374617633,1753380642797,-460.0,0.00019908,2]
[374617634,1753380642808,-500.24,0.00019908,2]
[374617635,1753380642819,-460.0,0.00019908,2]
[374617636,1753380642830,-875.4,0.00019908,2]
[374617637,1753380642840,-460.0,0.00019908,2]
[374617638,1753380642851,-460.0,0.00019908,2]
[374617639,1753380642864,-1782.41,0.00019908,2]
[374617640,1753380642874,-460.0,0.00019908,2]
[374617641,1753380642884,-1045.93,0.00019908,2]
[374617642,1753380642895,-460.0,0.00019908,2]
[374617643,1753380642906,-460.0,0.00019908,2]
[374617644,1753380642917,-460.0,0.00019908,2]
[374617645,1753380642926,-607.47,0.00019908,2]
[374617646,1753380642935,-1690.92,0.00019908,2]
[374617647,1753380642945,-460.0,0.00019908,2]
[374617648,1753380642955,-715.98,0.00019908,2]
[374617649,1753380642965,-460.0,0.00019908,2]
[374617650,1753380642974,-460.0,0.00019908,2]
[374617651,1753380642983,-460.0,0.00019908,2]
[374617652,1753380642992,-460.0,0.00019908,2]
[374617653,1753380643002,-460.0,0.00019908,2]
[374617654,1753380643011,-460.0,0.00019908,2]
[374617655,1753380643020,-460.0,0.00019908,2]
[374617656,1753380643030,-460.0,0.00019908,2]
[374617657,1753380643039,-460.0,0.00019908,2]
[374617658,1753380643048,-460.0,0.00019908,2]
[374617659,1753380643058,-460.0,0.00019908,2]
[374617660,1753380643067,-460.0,0.00019908,2]
[374617661,1753380643077,-460.0,0.00019908,2]
[374617662,1753380643087,-460.0,0.00019909,2]
[374617663,1753380643096,-460.0,0.00019909,2]
[374617664,1753380643106,-460.0,0.00019909,2]
[374617665,1753380643115,-460.0,0.00019909,2]
[374617666,1753380643124,-460.0,0.00019909,2]
[374617667,1753380643134,-460.0,0.00019909,2]
[374617668,1753380643144,-500.0,0.00019973,2]
[374617669,1753380643154,-500.0,0.00019973,2]
[374617670,1753380643163,-304.97620169,0.00019973,2]
[374617671,1753380643174,-500.0,0.00019973,2]
[374617672,1753380643186,-588.88212605,0.0001999,2]
[374617673,1753380643196,-460.0,0.00020006,2]
[374617674,1753380643207,-460.0,0.00020007,2]
[374617675,1753380643217,-460.0,0.00020007,2]
[374617677,1753380643226,-269.77318877,0.00020007,2]
[374617679,1753380643235,-460.0,0.00020007,2]
[374617681,1753380643244,-460.0,0.00020007,2]
[374617682,1753380643254,-460.0,0.00020007,2]
[374617683,1753380643264,-460.0,0.00020007,2]
[374617684,1753380643274,-460.0,0.00020007,2]
[374617685,1753380643284,-460.0,0.00020007,2]
[374617686,1753380643294,-460.0,0.00020007,2]
[374617687,1753380643304,-460.0,0.00020007,2]
[374617688,1753380643313,-460.0,0.00020008,2]
[374617689,1753380643322,-460.0,0.00020008,2]
[374617690,1753380643332,-460.0,0.00020008,2]
[374617692,1753380643341,-500.0,0.00020008,2]
[374617694,1753380643351,-465.97814839,0.00020008,2]
[374617697,1753380643361,-460.0,0.00020008,2]
[374617699,1753380643370,-460.0,0.00020008,2]
[374617702,1753380643379,-460.0,0.00020008,2]
[374617704,1753380643389,-460.0,0.00020008,2]
[374617706,1753380643402,-450.0,0.00020008,2]
[374617708,1753380643416,-460.0,0.00020008,2]
[374617710,1753380643427,-1254.92,0.00020008,2]
[374617712,1753380643436,-460.0,0.00020008,2]
[374617714,1753380643447,-200.8552983,0.0002005,2]
[374617716,1753380643458,-460.0,0.0002018,2]
[374617718,1753380643467,-460.0,0.0002018,2]
[374617720,1753380643479,-460.0,0.0002018,2]
[374617722,1753380643488,-1072.34,0.0002018,2]
[374617724,1753380643497,-2981.25,0.0002018,2]
[374617725,1753380643507,-460.0,0.0002018,2]
[374617727,1753380643517,-1693.51,0.0002018,2]
[374617729,1753380643526,-870.03,0.0002018,2]
[374617731,1753380643535,-460.0,0.0002018,2]
[374617733,1753380643545,-460.0,0.0002018,2]
[374617735,1753380643554,-1124.59,0.0002018,2]
[374617737,1753380643564,-1103.44,0.0002018,2]
[374617739,1753380643574,-460.0,0.0002018,2]
[374617741,1753380643583,-460.0,0.00020181,2]
[374617743,1753380643592,-460.0,0.00020181,2]
[374617745,1753380643602,-460.0,0.00020181,2]
[374617746,1753380643611,-899.35,0.00020181,2]
[374617748,1753380643620,-460.0,0.00020181,2]
[374617750,1753380643629,-460.0,0.00020181,2]
[374617752,1753380643638,-460.0,0.00020181,2]
[374617754,1753380643648,-460.0,0.00020181,2]
[374617756,1753380643657,-530.46,0.00020181,2]
[374617758,1753380643666,-460.0,0.00020181,2]
[374617761,1753380643676,-460.0,0.00020181,2]
[374617763,1753380643685,-460.0,0.00020181,2]
[374617765,1753380643695,-3352.39,0.00020181,2]
[374617766,1753380643704,-610.16,0.00020181,2]
[374617768,1753380643713,-460.0,0.00020181,2]
[374617770,1753380643722,-460.0,0.00020181,2]
[374617772,1753380643732,-699.84,0.00020181,2]
[374617774,1753380643742,-460.0,0.00020181,2]
[374617776,1753380643752,-460.0,0.00020182,2]
[374617778,1753380643763,-460.0,0.00020182,2]
[374617780,1753380643772,-460.0,0.00020182,2]
[374617782,1753380643782,-1768.51,0.00020182,2]
[374617784,1753380643791,-460.0,0.00020182,2]
[374617786,1753380643802,-460.0,0.00020182,2]
[374617788,1753380643812,-460.0,0.00020182,2]
[374617790,1753380643822,-460.0,0.00020182,2]
[374617791,1753380643832,-460.0,0.00020182,2]
[374617793,1753380643841,-460.0,0.00020182,2]
[374617795,1753380643850,-460.0,0.00020182,2]
[374617807,1753380643955,-460.0,0.00020182,2]
[374617809,1753380643964,-460.0,0.00020182,2]
[374617810,1753380643974,-460.0,0.00020182,2]
[374617811,1753380643983,-460.0,0.00020182,2]
[374617812,1753380643993,-460.0,0.00020182,2]
[374617813,1753380644003,-460.0,0.00020182,2]
[374617814,1753380644012,-460.0,0.00020182,2]
[374617815,1753380644021,-460.0,0.00020182,2]
[374617816,1753380644031,-460.0,0.00020182,2]
[374617817,1753380644040,-460.0,0.00020182,2]
[374617818,1753380644049,-460.0,0.00020182,2]
[374617819,1753380644058,-460.0,0.00020182,2]
[374617820,1753380644067,-1096.7,0.00020182,2]
[374617821,1753380644076,-460.0,0.00020182,2]
[374617822,1753380644085,-460.0,0.00020182,2]
[374617823,1753380644095,-460.0,0.00020182,2]
[374617824,1753380644104,-460.0,0.00020182,2]
[374617825,1753380644114,-460.0,0.00020182,2]
[374617826,1753380644124,-460.0,0.00020182,2]
[374617827,1753380644133,-500.24,0.00020182,2]
[374617829,1753380644142,-460.0,0.00020182,2]
[374617830,1753380644151,-875.4,0.00020182,2]
[374617831,1753380644160,-460.0,0.00020182,2]
[374617832,1753380644170,-460.0,0.00020182,2]
[374617833,1753380644179,-1782.41,0.00020182,2]
[374617834,1753380644188,-460.0,0.00020182,2]
[374617835,1753380644198,-1045.93,0.00020182,2]
[374617836,1753380644208,-460.0,0.00020182,2]
[374617837,1753380644218,-460.0,0.00020182,2]
[374617838,1753380644227,-607.47,0.00020182,2]
[374617839,1753380644237,-1690.92,0.00020182,2]
[374617840,1753380644247,-460.0,0.00020182,2]
[374617841,1753380644256,-715.98,0.00020182,2]
[374617842,1753380644266,-460.0,0.00020182,2]
[374617843,1753380644277,-460.0,0.00020182,2]
[374617844,1753380644287,-460.0,0.00020182,2]
[374617845,1753380644297,-460.0,0.00020182,2]
[374617846,1753380644306,-460.0,0.00020182,2]
[374617847,1753380644315,-460.0,0.00020182,2]
[374617848,1753380644326,-460.0,0.00020182,2]
[374617849,1753380644335,-431.14768298,0.00020182,2]
[374617850,1753380644345,-452.87118701,0.00020183,2]
[374617852,1753380644356,-500.0,0.00020261,2]
[374617853,1753380644365,-460.0,0.00020281,2]
[374617854,1753380644375,-460.0,0.00020281,2]
[374617855,1753380644385,-460.0,0.00020281,2]
[374617856,1753380644394,-460.0,0.00020281,2]
[374617857,1753380644408,-460.0,0.00020282,2]
[374617858,1753380644418,-460.0,0.00020282,2]
[374617859,1753380644427,-616.64859188,0.00020282,2]
[374617860,1753380644436,-460.0,0.00020282,2]
[374617861,1753380644446,-460.0,0.00020282,2]
[374617862,1753380644457,-1254.92,0.00020282,2]
[374617863,1753380644466,-460.0,0.00020282,2]
[374617864,1753380644479,-1000.0,0.00020321,2]
[374617865,1753380644489,-460.0,0.00020454,2]
[374617866,1753380644499,-460.0,0.00020454,2]
[374617867,1753380644510,-460.0,0.00020454,2]
[374617868,1753380644520,-1072.34,0.00020454,2]
[374617869,1753380644530,-2981.25,0.00020454,2]
[374617870,1753380644539,-532.93259414,0.00020454,2]
[374617871,1753380644549,-1693.51,0.00020454,2]
[374617872,1753380644558,-870.03,0.00020454,2]
[374617873,1753380644568,-460.0,0.00020454,2]
[374617874,1753380644577,-1124.59,0.00020454,2]
[374617875,1753380644587,-1103.44,0.00020454,2]
[374617876,1753380644597,-498.04747012,0.00020454,2]
[374617877,1753380644607,-460.0,0.00020455,2]
[374617878,1753380644616,-460.0,0.00020455,2]
[374617879,1753380644625,-899.35,0.00020455,2]
[374617880,1753380644636,-501.09,0.00020455,2]
[374617881,1753380644646,-460.0,0.00020455,2]
[374617882,1753380644655,-460.0,0.00020455,2]
[374617883,1753380644665,-460.0,0.00020455,2]
[374617884,1753380644676,-530.46,0.00020455,2]
[374617885,1753380644686,-460.0,0.00020455,2]
[374617886,1753380644697,-460.0,0.00020455,2]
[374617887,1753380644708,-460.0,0.00020455,2]
[374617888,1753380644717,-3352.39,0.00020455,2]
[374617889,1753380644726,-610.16,0.00020455,2]
[374617890,1753380644736,-460.0,0.00020455,2]
[374617891,1753380644745,-699.84,0.00020455,2]
[374617892,1753380644755,-460.0,0.00020455,2]
[374617893,1753380644764,-369.30558187,0.00020456,2]
[374617894,1753380644773,-523.78,0.00020456,2]
[374617895,1753380644783,-1768.51,0.00020456,2]
[374617896,1753380644793,-295.95757342,0.00020456,2]
[374617897,1753380644803,-460.0,0.00020456,2]
[374617898,1753380644812,-460.0,0.00020456,2]
[374617899,1753380644822,-460.0,0.00020456,2]
[374617900,1753380644831,-460.0,0.00020456,2]
[374617901,1753380644840,-460.0,0.00020456,2]
[374617902,1753380644850,-460.0,0.00020456,2]
[374617903,1753380644860,-460.0,0.00020456,2]
[374617904,1753380644870,-588.8146538,0.00020456,2]
[374617905,1753380644879,-1096.7,0.00020456,2]
[374617906,1753380644889,-460.0,0.00020456,2]
[374617907,1753380644898,-460.0,0.00020456,2]
[374617908,1753380644908,-460.0,0.00020456,2]
[374617909,1753380644917,-500.24,0.00020456,2]
[374617910,1753380644926,-460.0,0.00020456,2]
[374617911,1753380644935,-875.4,0.00020456,2]
[374617912,1753380644945,-460.0,0.00020456,2]
[374617913,1753380644955,-460.0,0.00020456,2]
[374617914,1753380644964,-1782.41,0.00020456,2]
[374617915,1753380644974,-352.7,0.00020456,2]
[374617916,1753380644984,-1045.93,0.00020456,2]
[374617917,1753380644996,-460.0,0.00020456,2]
[374617918,1753380645006,-460.0,0.00020456,2]
[374617919,1753380645016,-607.47,0.00020456,2]
[374617920,1753380645026,-1690.92,0.00020456,2]
[374617921,1753380645035,-715.98,0.00020456,2]
[374617922,1753380645045,-460.0,0.00020456,2]
[374617923,1753380645055,-460.0,0.00020456,2]
[374617924,1753380645065,-460.0,0.00020456,2]
[374617925,1753380645075,-460.0,0.00020456,2]
[374617926,1753380645086,-460.0,0.00020456,2]
[374617927,1753380645097,-1064.97719508,0.00020474,2]
[374617928,1753380645108,-500.0,0.00020521,2]
[374617929,1753380645118,-500.0,0.00020521,2]
[374617930,1753380645128,-460.0,0.00020555,2]
[374617931,1753380645138,-460.0,0.00020556,2]
[374617932,1753380645147,-1254.92,0.00020556,2]
[374617933,1753380645156,-460.0,0.00020556,2]
[374617934,1753380645166,-192.25184438,0.00020592,2]
[374617935,1753380645176,-460.0,0.00020728,2]
[374617936,1753380645187,-460.0,0.00020728,2]
[374617937,1753380645197,-460.0,0.00020728,2]
[374617938,1753380645208,-1072.34,0.00020728,2]
[374617939,1753380645218,-2981.25,0.00020728,2]
[374617940,1753380645230,-1693.51,0.00020728,2]
[374617941,1753380645240,-870.03,0.00020728,2]
[374617942,1753380645250,-460.0,0.00020728,2]
[374617943,1753380645260,-1124.59,0.00020728,2]
[374617944,1753380645272,-1103.44,0.00020728,2]
[374617945,1753380645283,-460.0,0.00020729,2]
[374617946,1753380645293,-460.0,0.00020729,2]
[374617947,1753380645306,-899.35,0.00020729,2]
[374617948,1753380645329,-460.0,0.00020729,2]
[374617949,1753380645349,-460.0,0.00020729,2]
[374617950,1753380645369,-530.46,0.00020729,2]
[374617951,1753380645381,-460.0,0.00020729,2]
[374617952,1753380645392,-460.0,0.00020729,2]
[374617953,1753380645411,-460.0,0.00020729,2]
[374617954,1753380645427,-3352.39,0.00020729,2]
[374617955,1753380645437,-610.16,0.00020729,2]
[374617956,1753380645446,-460.0,0.00020729,2]
[374617957,1753380645456,-699.84,0.00020729,2]
[374617958,1753380645466,-460.0,0.00020729,2]
[374617959,1753380645476,-1768.51,0.0002073,2]
[374617960,1753380645485,-460.0,0.0002073,2]
[374617961,1753380645495,-460.0,0.0002073,2]
[374617962,1753380645504,-460.0,0.0002073,2]
[374617963,1753380645514,-460.0,0.0002073,2]
[374617964,1753380645523,-460.0,0.0002073,2]
[374617965,1753380645533,-460.0,0.0002073,2]
[374617966,1753380645542,-460.0,0.0002073,2]
[374617967,1753380645551,-1096.7,0.0002073,2]
[374617968,1753380645561,-460.0,0.0002073,2]
[374617969,1753380645570,-500.24,0.0002073,2]
[374617970,1753380645579,-460.0,0.0002073,2]
[374617971,1753380645589,-875.4,0.0002073,2]
[374617972,1753380645598,-460.0,0.0002073,2]
[374617973,1753380645607,-460.0,0.0002073,2]
[374617974,1753380645616,-1782.41,0.0002073,2]
[374617975,1753380645626,-1045.93,0.0002073,2]
[374617976,1753380645636,-460.0,0.0002073,2]
[374617977,1753380645646,-460.0,0.0002073,2]
[374617978,1753380645655,-607.47,0.0002073,2]
[374617979,1753380645665,-1690.92,0.0002073,2]
[374617980,1753380645674,-498.2,0.0002073,2]
[374617981,1753380645683,-460.0,0.0002073,2]
[374617982,1753380645692,-715.98,0.0002073,2]
[374617983,1753380645701,-460.0,0.0002073,2]
[374617984,1753380645711,-460.0,0.0002073,2]
[374617985,1753380645720,-460.0,0.0002073,2]
[374617986,1753380645729,-160.0,0.00020735,2]
[374617987,1753380645739,-160.0,0.00020735,2]
[374617988,1753380645748,-476.79463412,0.00020735,2]
[374617989,1753380645757,-12624.810388,0.00020737,2]
[374617990,1753380645766,-160.0,0.00020737,2]
[374617991,1753380645775,-231.16387093,0.00020737,2]
[374617992,1753380645784,-215.88777038,0.00020737,2]
[374617993,1753380645794,-160.0,0.00020737,2]
[374617994,1753380645803,-214.7213231,0.00020737,2]
[374617995,1753380645813,-840.23756827,0.00020741,2]
[374617996,1753380645822,-160.0,0.00020741,2]
[374617997,1753380645831,-160.0,0.00020741,2]
[374617998,1753380645841,-160.0,0.00020741,2]
[374617999,1753380645850,-160.0,0.00020741,2]
[374618000,1753380645860,-526.24749348,0.00020741,2]
[374618001,1753380645869,-160.0,0.00020741,2]
[374618002,1753380645878,-548.56607355,0.00020809,2]
[374618003,1753380645887,-325.6762371,0.00020829,2]
[374618004,1753380645896,-460.0,0.0002083,2]
[374618005,1753380645905,-1254.92,0.0002083,2]
[374618006,1753380645915,-460.0,0.0002083,2]
[374618007,1753380645924,-526.12808574,0.00020868,2]
[374618008,1753380645935,-255.0,0.0002091,2]
[374618009,1753380645944,-193.58763689,0.00020915,2]
[374618010,1753380645954,-160.0,0.00020954,2]
[374618011,1753380645963,-151.0,0.0002097,2]
[374618012,1753380645973,-151.0,0.0002097,2]
[374618013,1753380645982,-151.0,0.0002097,2]
[374618014,1753380645991,-215.0738,0.0002097,2]
[374618015,1753380646000,-151.0,0.0002097,2]
[374618016,1753380646009,-151.0,0.0002097,2]
[374618017,1753380646018,-151.0,0.0002097,2]
[374618018,1753380646027,-151.0,0.0002097,2]
[374618019,1753380646037,-151.0,0.0002097,2]
[374618020,1753380646046,-151.0,0.0002097,2]
[374618021,1753380646055,-151.0,0.0002097,2]
[374618022,1753380646065,-151.0,0.0002097,2]
[374618023,1753380646074,-151.0,0.0002097,2]
[374618024,1753380646084,-151.0,0.0002097,2]
[374618025,1753380646093,-151.0,0.0002097,2]
[374618026,1753380646103,-151.0,0.0002097,2]
[374618027,1753380646112,-278.67023657,0.0002097,2]
[374618029,1753380646122,-151.0,0.0002097,2]
[374618030,1753380646131,-151.0,0.0002097,2]
[374618031,1753380646141,-151.0,0.0002097,2]
[374618032,1753380646240,-151.0,0.0002097,2]
[374618033,1753380646251,-151.0,0.0002097,2]
[374618034,1753380646261,-151.0,0.0002097,2]
[374618035,1753380646271,-151.0,0.0002097,2]
[374618036,1753380646280,-151.0,0.0002097,2]
[374618037,1753380646291,-25000.0,0.0002097,2]
[374618038,1753380646301,-151.0,0.0002097,2]
[374618039,1753380646310,-151.0,0.0002097,2]
[374618040,1753380646320,-151.0,0.0002097,2]
[374618041,1753380646330,-151.0,0.0002097,2]
[374618043,1753380646340,-151.0,0.0002097,2]
[374618045,1753380646350,-151.0,0.0002097,2]
[374618047,1753380646360,-151.0,0.0002097,2]
[374618049,1753380646370,-151.0,0.0002097,2]
[374618051,1753380646380,-151.0,0.0002097,2]
[374618052,1753380646390,-151.0,0.0002097,2]
[374618053,1753380646401,-151.0,0.0002097,2]
[374618054,1753380646411,-151.0,0.0002097,2]
[374618055,1753380646421,-151.0,0.0002097,2]
[374618056,1753380646431,-151.0,0.0002097,2]
[374618057,1753380646441,-151.0,0.0002097,2]
[374618058,1753380646451,-383.22,0.00020995,3]
[374618059,1753380646461,-460.0,0.00021002,2]
[374618060,1753380646472,-460.0,0.00021002,2]
[374618061,1753380646482,-460.0,0.00021002,2]
[374618062,1753380646492,-1072.34,0.00021002,2]
[374618063,1753380646501,-2981.25,0.00021002,2]
[374618064,1753380646512,-1693.51,0.00021002,2]
[374618065,1753380646522,-870.03,0.00021002,2]
[374618066,1753380646531,-460.0,0.00021002,2]
[374618067,1753380646540,-1124.59,0.00021002,2]
[374618068,1753380646551,-1103.44,0.00021002,2]
[374618069,1753380646560,-460.0,0.00021003,2]
[374618070,1753380646570,-460.0,0.00021003,2]
[374618071,1753380646579,-899.35,0.00021003,2]
[374618072,1753380646589,-460.0,0.00021003,2]
[374618073,1753380646598,-460.0,0.00021003,2]
[374618074,1753380646607,-530.46,0.00021003,2]
[374618075,1753380646617,-460.0,0.00021003,2]
[374618076,1753380646626,-460.0,0.00021003,2]
[374618077,1753380646635,-460.0,0.00021003,2]
[374618079,1753380646645,-3352.39,0.00021003,2]
[374618081,1753380646655,-610.16,0.00021003,2]
[374618082,1753380646664,-460.0,0.00021003,2]
[374618083,1753380646673,-699.84,0.00021003,2]
[374618084,1753380646683,-460.0,0.00021003,2]
[374618085,1753380646693,-1768.51,0.00021004,2]
[374618086,1753380646703,-154.34,0.00021004,2]
[374618087,1753380646713,-460.0,0.00021004,2]
[374618088,1753380646722,-460.0,0.00021004,2]
[374618089,1753380646731,-460.0,0.00021004,2]
[374618090,1753380646741,-460.0,0.00021004,2]
[374618091,1753380646750,-460.0,0.00021004,2]
[374618092,1753380646759,-460.0,0.00021004,2]
[374618093,1753380646769,-1096.7,0.00021004,2]
[374618094,1753380646778,-460.0,0.00021004,2]
[374618095,1753380646787,-500.24,0.00021004,2]
[374618096,1753380646797,-460.0,0.00021004,2]
[374618097,1753380646807,-875.4,0.00021004,2]
[374618098,1753380646816,-460.0,0.00021004,2]
[374618099,1753380646825,-1782.41,0.00021004,2]
[374618100,1753380646835,-628.68718655,0.00021004,2]
[374618101,1753380646945,-417.24281345,0.00021004,2]
[374618102,1753380646955,-342.21574558,0.00021004,2]
[374618103,1753380646965,-607.47,0.00021004,2]
[374618104,1753380646976,-1690.92,0.00021004,2]
[374618105,1753380646986,-460.0,0.00021004,2]
[374618106,1753380646996,-715.98,0.00021004,2]
[374618107,1753380647006,-460.0,0.00021004,2]
[374618108,1753380647016,-460.0,0.00021004,2]
[374618109,1753380647027,-460.0,0.00021004,2]
[374618110,1753380647038,-500.0,0.00021046,2]
[374618111,1753380647048,-500.0,0.00021046,2]
[374618112,1753380647060,-1254.92,0.00021104,2]
[374618114,1753380647070,-455.80420107,0.00021104,2]
[374618115,1753380647080,-460.0,0.00021276,2]
[374618116,1753380647090,-566.15809037,0.00021276,2]
[374618117,1753380647100,-493.05,0.00021276,2]
[374618118,1753380647111,-1072.34,0.00021276,2]
[374618119,1753380647121,-2981.25,0.00021276,2]
[374618120,1753380647131,-1693.51,0.00021276,2]
[374618121,1753380647140,-870.03,0.00021276,2]
[374618122,1753380647150,-460.0,0.00021276,2]
[374618123,1753380647160,-1124.59,0.00021276,2]
[374618124,1753380647170,-1103.44,0.00021276,2]
[374618125,1753380647180,-460.0,0.00021277,2]
[374618126,1753380647190,-460.0,0.00021277,2]
[374618127,1753380647199,-899.35,0.00021277,2]
[374618128,1753380647213,-460.0,0.00021277,2]
[374618129,1753380647223,-460.0,0.00021277,2]
[374618130,1753380647232,-530.46,0.00021277,2]
[374618131,1753380647242,-460.0,0.00021277,2]
[374618132,1753380647255,-460.0,0.00021277,2]
[374618133,1753380647265,-460.0,0.00021277,2]
[374618134,1753380647275,-3352.39,0.00021277,2]
[374618135,1753380647285,-610.16,0.00021277,2]
[374618136,1753380647295,-460.0,0.00021277,2]
[374618137,1753380647304,-699.84,0.00021277,2]
[374618138,1753380647316,-460.0,0.00021277,2]
[374618139,1753380647326,-1768.51,0.00021278,2]
[374618140,1753380647336,-460.0,0.00021278,2]
[374618141,1753380647346,-460.0,0.00021278,2]
[374618142,1753380647356,-460.0,0.00021278,2]
[374618143,1753380647366,-460.0,0.00021278,2]
[374618144,1753380647375,-460.0,0.00021278,2]
[374618145,1753380647385,-408.22,0.00021278,2]
[374618146,1753380647395,-1096.7,0.00021278,2]
[374618147,1753380647408,-460.0,0.00021278,2]
[374618148,1753380647418,-500.24,0.00021278,2]
[374618149,1753380647427,-460.0,0.00021278,2]
[374618150,1753380647437,-875.4,0.00021278,2]
[374618151,1753380647448,-460.0,0.00021278,2]
[374618152,1753380647463,-1782.41,0.00021278,2]
[374618153,1753380647472,-1045.93,0.00021278,2]
[374618154,1753380647483,-607.47,0.00021278,2]
[374618155,1753380647493,-1690.92,0.00021278,2]
[374618156,1753380647502,-460.0,0.00021278,2]
[374618157,1753380647512,-715.98,0.00021278,2]
[374618158,1753380647521,-460.0,0.00021278,2]
[374618159,1753380647530,-460.0,0.00021278,2]
[374618160,1753380647540,-460.0,0.00021278,2]
[374618161,1753380647549,-500.0,0.000213,2]
[374618162,1753380647559,-500.0,0.000213,2]
[374618163,1753380647568,-1064.97719508,0.00021316,2]
[374618164,1753380647577,-178.70934786,0.00021361,2]
[374618165,1753380647587,-1021.517,0.00021361,2]
[374618166,1753380647597,-1254.92,0.00021378,2]
[374618167,1753380647606,-420.0,0.00021384,2]
[374618168,1753380647615,-151.0,0.000214,4]
[374618169,1753380647624,-500.0,0.000214,2]
[374618170,1753380647633,-500.0,0.00021413,2]
[374618171,1753380647643,-500.0,0.00021413,2]
[374618172,1753380647652,-1680.0,0.00021487,2]
[374618173,1753380647661,-260.0,0.00021502,2]
[374618174,1753380647670,-25000.0,0.00021518,2]
[374618175,1753380647679,-314.74051871,0.0002155,2]
[374618176,1753380647688,-1072.34,0.0002155,2]
[374618177,1753380647697,-2981.25,0.0002155,2]
[374618178,1753380647709,-1693.51,0.0002155,2]
[374618179,1753380647719,-870.03,0.0002155,2]
[374618180,1753380647727,-460.0,0.0002155,2]